[Event "African Individual Chess-ch Open 2024"]
[Site "Accra"]
[Date "2024.03.19"]
[Round "8.8"]
[White "De Gondo, Simplice Armel"]
[Black "Wanyama, Harold"]
[Result "0-1"]
[ECO "E03"]
[WhiteElo "2024"]
[BlackElo "2226"]
[Annotator "TA"]
[PlyCount "112"]
[EventDate "2024.03.13"]
[EventCountry "GHA"]
[SourceTitle "playchess.com"]
[Source "ChessBase"]
[SourceQuality "1"]
[TimeControl "5400+30"]

{[%evp 18,112,-39,-50,-49,-51,-22,-25,-2,-58,-30,-79,14,5,49,48,37,0,-10,-6,0,-13,-14,-64,-58,-55,-60,-54,-64,-116,-58,-72,-12,-8,-10,-9,-18,-38,-35,-53,-17,-51,-13,-13,-12,-15,-8,-12,-15,-24,-22,-110,-109,-180,-168,-158,-162,-197,-192,-248,-222,-322,-343,-333,-288,-472,-469,-470,-473,-613,-600,-718,-592,-685,-660,-895,-884,-1927,-1720,-2170,-1854,-2438,-2204,-2459,-2180,-4825,-2898,-3123,-3052,-29984,-29985,-29985,-29986,-29986,-29987,-29988,-29987]} 1. d4 {[%emt 0:00:02]} d5 {[%emt 0:00:18]} 2. c4 {[%emt 0:00:01]} e6 {[%emt 0:00:16]} 3. Nf3 {[%emt 0:00:01]} Nf6 {[%emt 0:00:14]} 4. g3 {[%emt 0:00:01]} dxc4 {[%emt 0:00:36]} 5. Qa4+ {[%emt 0:00:57]} Nbd7 {[%emt 0:00:30]} 6. Bg2 {[%emt 0:00:26]} a6 {[%emt 0:00:20]} 7. Qxc4 {[%emt 0:00:04]} b5 {[%emt 0:00:21]} 8. Qc2 {[%emt 0:00:09]} Bb7 {[%emt 0:00:09]} 9. O-O {[%emt 1:33:19]} c5 {[%emt 0:00:22]} 10. Bg5 {[%emt 0:00:00]} Rc8 {[%emt 0:00:18]} 11. Qd1 {[%emt 0:00:00]} h6 {[%emt 0:00:22]} 12. Bxf6 {[%emt 0:00:00]} Nxf6 {[%emt 0:00:34] Schwarz hat minimalen Vorteil.} 13. Nc3 {[%emt 0:00:00]} (13. dxc5 $11 Bxc5 14. Qxd8+ Kxd8 15. a4) 13... Qb6 {[%emt 0:02:59]} 14. a4 {[%emt 0:00:00] [#]} (14. e3 $11) 14... b4 {[%emt 0:04:27] Schwarz steht aktiver.} ({Günstiger ist} 14... cxd4 $1 $17 15. Qxd4 Bc5) 15. a5 $11 {[%emt 0:00:00]} Qd8 {[%emt 0:11:45]} 16. Na4 {[%emt 0:00:00]} Nd7 {[%emt 0:00:49] Es drohte Nb6} 17. Ne5 {[%emt 0:00:00]} (17. Qd2 $14 {ist überlegen.}) 17... Bxg2 {[%emt 0:00:27]} 18. Kxg2 {[%emt 0:00:00][%cal Oa4b6] Nb6! ist eine echte Drohung.} Nxe5 {[%emt 0:00:32]} (18... Qxa5 $2 19. Nxc5 (19. Nxd7 Qc7 $18) 19... Qb5 20. Nexd7 $18) 19. dxe5 {[%emt 0:00:00]} Qxa5 {[%emt 0:00:30]} 20. b3 {[%emt 0:00:00]} (20. Nc3 $11 Qb6 21. Qa4+ Rc6 (21... Qc6+ 22. Ne4 $17) 22. Ne4) 20... Qc7 $1 $15 {[%emt 0:00:24][%cal Oc5c4]} 21. Qd3 {[%emt 0:00:00]} c4 {[%emt 0:05:42]} (21... Qxe5 $6 22. Qxa6 Qe4+ 23. f3 $14) 22. bxc4 {[%emt 0:00:00][%cal Oc4c5]} Be7 {[%emt 0:07:43][%cal Oe8g8]} (22... Qxc4 $6 23. Qxc4 Rxc4 24. Nb6 $14) (22... Qxe5 23. Nb6 Rd8 24. Qf3 $11) 23. Rfd1 {[%emt 0:00:00]} (23. c5 $15) 23... O-O {[%emt 0:00:51]} (23... Qxe5 24. Qd7+ Kf8 25. Qxc8+) (23... a5 $17 24. Kf1 Qb7 (24... Qxe5 25. Qd7+ Kf8 26. Qxc8+)) 24. Qd7 {[%emt 0:00:00]} Rfe8 {[%emt 0:00:15]} (24... a5 $17) 25. Qxc7 $11 {[%emt 0:00:00]} Rxc7 {[%emt 0:00:28]} 26. Nb2 {[%emt 0:00:00]} Ra8 {[%emt 0:00:46]} 27. Rdc1 {[%emt 0:00:00]} a5 {[%emt 0:00:47]} 28. Ra4 {[%emt 0:00:00]} f6 {[%emt 0:08:35]} 29. Kf3 {[%emt 0:00:00]} Kf7 {[%emt 0:03:19]} 30. Rca1 {[%emt 0:00:00]} Rca7 {[%emt 0:02:06]} 31. Nd3 {[%emt 0:00:00]} Ke8 {[%emt 0:00:16]} 32. c5 {[%emt 0:00:00][%cal Od3b4]} b3 {[%emt 0:02:40]} 33. Ke4 {[%emt 0:00:00]} fxe5 {[%emt 0:01:51]} 34. h4 {[%emt 0:00:00]} (34. Rb1 $1 $11 {bleibt in der Remisbreite.} Rb8 35. Nxe5) 34... Rb7 $17 {[%emt 0:03:46] Schwarz bringt die Sache ungefährdet zu Ende.} 35. e3 {[%emt 0:00:00]} (35. Rxa5 $2 Rxa5 36. Rxa5 b2 37. Nxb2 Rxb2 $19) (35. Rb1 $17 {war angesagt.}) 35... Rb5 $19 {[%emt 0:00:45]} 36. Rb1 {[%emt 0:00:15]} Bf6 {[%emt 0:04:43]} (36... Bxc5 37. Nxc5 Rxc5 38. Rxb3 $11) 37. f3 {[%emt 0:06:51]} Kd8 {[%emt 0:01:52]} 38. g4 {[%emt 0:00:40]} (38. Nf2 $142) 38... Kc7 {[%emt 0:02:40]} 39. g5 {[%emt 0:01:53]} (39. Nxe5 {kämpft weiter.} Bxe5 (39... Rxc5 $2 40. Nc4 $19) 40. Kxe5) 39... hxg5 {[%emt 0:00:25]} 40. hxg5 {[%emt 0:00:02]} Bxg5 {[%emt 0:00:08]} 41. Nxe5 $2 {[%emt 0:03:14]} (41. Ra3 {ist wohl besser.} a4 42. Rg1) 41... Bf6 {[%emt 0:00:26]} ({Lieber nicht} 41... Rxc5 42. Rxb3 Bf6 43. Nd3 $11) 42. Nd3 {[%emt 0:00:00]} Kc6 {[%emt 0:00:00]} 43. f4 {[%emt 0:00:00]} Rbb8 {[%emt 0:00:00]} 44. Ne5+ {[%emt 0:00:00]} Kb5 {[%emt 0:00:00]} ({Schlechter ist} 44... Kxc5 45. Nd7+ Kd6 (45... Kb5 $2 46. Rxb3+ Kc6 47. Nxb8+ $18) 46. Nxb8 Rxb8 47. Rxa5 $11) 45. Ra3 {[%emt 0:00:00]} a4 {[%emt 0:00:00]} 46. Nd7 {[%emt 0:00:00]} Kb4 {[%emt 0:00:00]} 47. Nxb8 {[%emt 0:00:00]} Kxa3 {[%emt 0:00:00][%mdl 4096] Endspiel. KRB-KRN} 48. Nd7 {[%emt 0:00:00]} Ka2 {[%emt 0:00:00]} 49. Rd1 {[%emt 0:00:00]} a3 {[%emt 0:00:00]} 50. c6 {[%emt 0:00:00]} Rc8 {[%emt 0:00:00] [#] Und ...b2 würde nun gewinnen.} 51. f5 {[%emt 0:00:00]} Rxc6 {[%emt 0:00:00] Und jetzt ...b2 wäre schön.} 52. fxe6 {[%emt 0:00:00]} Rxe6+ {[%emt 0:00:00]} 53. Kd5 {[%emt 0:00:00]} Rxe3 {[%emt 0:00:00] Schwarz setzt Matt.} 54. Nb6 {[%emt 0:00:00]} b2 {[%emt 0:00:00]} 55. Nc4 {[%emt 0:00:00]} Rc3 {[%emt 0:00:00]} 56. Rd2 {[%emt 0:00:00]} Ka1 {[%emt 0:16:38] Gewichteter Fehlerwert: Weiß=0.88/Schwarz=0.20 (präzise) .  Fehler:       	Weiß=10    	Schwarz=3     Ungenau:       	Weiß=2     	Schwarz=5     OK:         	Weiß=10    	Schwarz=16    Bester:       	Weiß=3     	Schwarz=3     Stark:        	---       	Schwarz=1} 0-1

[Event "African Individual Chess-ch Open 2024"]
[Site "Accra"]
[Date "2024.03.19"]
[Round "8.9"]
[White "Rongwane, Gomolemo"]
[Black "Mhango, Banele"]
[Result "0-1"]
[ECO "C89"]
[WhiteElo "2021"]
[BlackElo "2193"]
[Annotator "RC"]
[PlyCount "36"]
[EventDate "2024.03.13"]
[EventCountry "GHA"]
[SourceTitle "playchess.com"]
[Source "ChessBase"]
[SourceQuality "1"]
[TimeControl "5400+30"]

1. e4 {[%emt 0:00:14]} e5 {[%emt 0:00:17]} 2. Nf3 {[%emt 0:00:13]} Nc6 {[%emt 0:00:06]} 3. Bb5 {[%emt 0:00:10]} a6 {[%emt 0:00:16]} 4. Ba4 {[%emt 0:00:10]} Nf6 {[%emt 0:00:08]} 5. O-O {[%emt 0:00:37]} b5 {[%emt 0:02:51]} 6. Bb3 {[%emt 0:04:56]} Be7 {[%emt 0:01:10]} 7. Re1 {[%emt 0:01:05]} O-O {[%emt 0:03:40]} 8. c3 {[%emt 0:02:01]} d5 {[%emt 0:06:18]} 9. exd5 {[%emt 0:10:36]} Nxd5 {[%emt 0:00:07]} 10. Nxe5 {[%emt 0:00:13]} Nxe5 {[%emt 0:00:06]} 11. Rxe5 {[%emt 0:00:08]} c6 {[%emt 0:00:07]} 12. d4 {[%emt 0:01:49]} Bd6 {[%emt 0:06:27]} 13. Re1 {[%emt 0:00:27]} Qh4 {[%emt 0:00:09]} 14. g3 {[%emt 0:00:20]} Qh3 {[%emt 0:05:09]} 15. Nd2 {[%emt 0:06:36]} Bg4 {[%emt 0:06:04]} 16. f3 {[%emt 0:16:04]} Bxg3 {[%emt 0:14:23]} 17. hxg3 {[%emt 0:15:19]} Qxg3+ {[%emt 0:00:23]} 18. Kf1 {[%emt 0:02:00]} Nf4 {[%emt 0:00:34]} 0-1

[Event "African Individual Chess-ch Open 2024"]
[Site "Accra"]
[Date "2024.03.19"]
[Round "8.10"]
[White "Ntamatungiro, Wilfried"]
[Black "Agnelo, Amorim"]
[Result "1-0"]
[ECO "B07"]
[WhiteElo "1905"]
[BlackElo "2219"]
[Annotator "RC"]
[PlyCount "81"]
[EventDate "2024.03.13"]
[EventCountry "GHA"]
[SourceTitle "playchess.com"]
[Source "ChessBase"]
[SourceQuality "1"]
[TimeControl "5400+30"]

1. e4 {[%emt 0:00:02]} d6 {[%emt 0:00:16]} 2. d4 {[%emt 0:00:16]} Nf6 {[%emt 0:00:02]} 3. Bd3 {[%emt 0:00:12]} g6 {[%emt 0:00:09]} 4. f4 {[%emt 0:00:13]} Bg7 {[%emt 0:00:10]} 5. f5 {[%emt 0:00:17]} c5 {[%emt 0:03:57]} 6. c3 {[%emt 0:00:53]} cxd4 {[%emt 0:00:31]} 7. cxd4 {[%emt 0:00:22]} gxf5 {[%emt 0:02:27]} 8. exf5 {[%emt 0:01:25]} Bxf5 {[%emt 0:01:57]} 9. Nf3 {[%emt 0:01:06]} Bg6 {[%emt 0:02:00]} 10. Nc3 {[%emt 0:00:34]} Nbd7 {[%emt 0:00:33]} 11. O-O {[%emt 0:01:11]} O-O {[%emt 0:04:11]} 12. Bg5 {[%emt 0:05:17]} Qb6 {[%emt 0:03:26]} 13. Na4 {[%emt 0:03:39]} Qa5 {[%emt 0:05:22]} 14. Bd2 {[%emt 0:00:58]} Qd8 {[%emt 0:01:14]} 15. Bxg6 {[%emt 0:05:15]} hxg6 {[%emt 0:00:42]} 16. Qe2 {[%emt 0:03:22]} a6 {[%emt 0:05:22]} 17. Kh1 {[%emt 0:00:41]} b5 {[%emt 0:02:54]} 18. Nc3 {[%emt 0:00:14]} Qb6 {[%emt 0:00:41]} 19. a3 {[%emt 0:01:33]} Rae8 {[%emt 0:00:31]} 20. Be3 {[%emt 0:01:36]} Qb7 {[%emt 0:01:02]} 21. Qd2 {[%emt 0:00:15]} Nb6 {[%emt 0:04:03]} 22. b3 {[%emt 0:09:10]} Nbd5 {[%emt 0:02:44]} 23. Nxd5 {[%emt 0:01:16]} Qxd5 {[%emt 0:00:08]} 24. Bh6 {[%emt 0:03:54]} Ng4 {[%emt 0:07:19]} 25. Bxg7 {[%emt 0:00:35]} Kxg7 {[%emt 0:00:01]} 26. h3 {[%emt 0:07:37]} Nf6 {[%emt 0:00:50]} 27. b4 {[%emt 0:05:05]} Rc8 {[%emt 0:02:54]} 28. Rae1 {[%emt 0:01:18]} Nh5 {[%emt 0:07:22]} 29. Kh2 {[%emt 0:01:17]} Rc7 {[%emt 0:00:23]} 30. Ng5 {[%emt 0:09:44]} e5 {[%emt 0:07:41]} 31. Qf2 {[%emt 0:04:28]} Re7 {[%emt 0:19:06]} 32. dxe5 {[%emt 0:04:33]} dxe5 {[%emt 0:00:24]} 33. Ne4 {[%emt 0:01:54]} f5 {[%emt 0:07:07]} 34. Nc5 {[%emt 0:01:42]} e4 {[%emt 0:01:14]} 35. Qb2+ {[%emt 0:04:30]} Nf6 {[%emt 0:03:01]} 36. Rd1 {[%emt 0:01:02]} Qc6 {[%emt 0:03:08]} 37. Rf4 {[%emt 0:04:42]} e3 {[%emt 0:02:35]} 38. Rfd4 {[%emt 0:04:15]} Qc7+ {[%emt 0:01:21]} 39. g3 {[%emt 0:04:13]} e2 {[%emt 0:00:20]} 40. Re1 {[%emt 0:00:41]} Re3 {[%emt 0:00:09]} 41. Rd7+ {[%emt 0:00:00]} 1-0

[Event "African Individual Chess-ch Open 2024"]
[Site "Accra"]
[Date "2024.03.19"]
[Round "8.11"]
[White "Frempong-Smart Daniel"]
[Black "Oluka Robert Mcligeyo"]
[Result "0-1"]
[ECO "D23"]
[WhiteElo "1877"]
[BlackElo "2041"]
[Annotator "NA RC"]
[PlyCount "55"]
[EventDate "2024.03.13"]
[EventCountry "GHA"]
[SourceTitle "playchess.com"]
[Source "ChessBase"]
[SourceQuality "1"]
[TimeControl "5400+30"]

1. d4 {[%emt 0:06:24]} Nf6 {[%emt 0:00:58]} 2. Nf3 {[%emt 0:00:07]} d5 {[%emt 0:01:36]} 3. g3 {[%emt 0:00:07]} c5 {[%emt 0:03:55]} 4. c4 {[%emt 0:08:36]} dxc4 {[%emt 0:01:10]} 5. Qa4+ {[%emt 0:02:31]} Nbd7 {[%emt 0:00:08]} 6. dxc5 {[%emt 0:01:03]} e5 {[%emt 0:09:11]} 7. Nxe5 {[%emt 0:05:05]} Bxc5 {[%emt 0:00:07]} 8. Bh3 {[%emt 0:03:24]} O-O {[%emt 0:01:10]} 9. Nxd7 {[%emt 0:03:12]} Nxd7 {[%emt 0:00:19]} 10. Bg2 {[%emt 0:12:39]} Nb6 {[%emt 0:00:08]} 11. Qc2 {[%emt 0:00:10]} Qf6 {[%emt 0:00:09]} 12. O-O {[%emt 0:00:22]} Bf5 {[%emt 0:00:04]} 13. e4 {[%emt 0:00:26]} Bg6 {[%emt 0:00:20]} 14. Bd2 {[%emt 0:01:50]} Rfe8 {[%emt 0:00:47]} 15. Bc3 {[%emt 0:01:29]} Qe7 {[%emt 0:00:08]} 16. Nd2 {[%emt 0:00:24]} Rac8 {[%emt 0:02:54]} 17. Qd1 {[%emt 0:03:45]} Red8 {[%emt 0:00:38]} 18. Kh1 {[%emt 0:01:19]} Bb4 {[%emt 0:04:14]} 19. f4 {[%emt 0:01:24]} Bxc3 {[%emt 0:00:11]} 20. bxc3 {[%emt 0:00:04]} Bh5 {[%emt 0:00:57]} 21. Qxh5 {[%emt 0:13:25]} Rxd2 {[%emt 0:00:08]} 22. Qa5 {[%emt 0:00:16]} Ra8 {[%emt 0:24:24]} 23. Rad1 {[%emt 0:00:33]} Rd3 {[%emt 0:03:51]} 24. e5 {[%emt 0:05:43]} Qd7 {[%emt 0:11:42]} 25. Rb1 {[%emt 0:05:38]} Nd5 {[%emt 0:03:40]} 26. Be4 {[%emt 0:08:13]} Rd2 {[%emt 0:02:10]} 27. Bg2 {[%emt 0:15:51]} Rd3 {[%emt 0:29:01]} 28. Qb5 {[%emt 0:00:00]} 0-1

[Event "African Individual Chess-ch Open 2024"]
[Site "Accra"]
[Date "2024.03.19"]
[Round "8.12"]
[White "Pereira, Sergio Murilo de Ara"]
[Black "Amoako Philip Selikem Yao"]
[Result "1-0"]
[ECO "B23"]
[WhiteElo "2115"]
[BlackElo "1848"]
[Annotator "RC"]
[PlyCount "81"]
[EventDate "2024.03.13"]
[EventCountry "GHA"]
[SourceTitle "playchess.com"]
[Source "ChessBase"]
[SourceQuality "1"]
[TimeControl "5400+30"]

1. e4 {[%emt 0:00:03]} c5 {[%emt 0:02:55]} 2. Nc3 {[%emt 0:00:07]} Nc6 {[%emt 0:00:11]} 3. Bb5 {[%emt 0:00:15]} Nd4 {[%emt 0:00:22]} 4. Bc4 {[%emt 0:00:07]} g6 {[%emt 0:00:28]} 5. Nf3 {[%emt 0:00:32]} Bg7 {[%emt 0:00:14]} 6. Nxd4 {[%emt 0:00:50]} cxd4 {[%emt 0:00:02]} 7. Qf3 {[%emt 0:00:16]} e6 {[%emt 0:01:59]} 8. Nb5 {[%emt 0:00:48]} Be5 {[%emt 0:04:38]} 9. Qa3 {[%emt 0:21:26]} Qe7 {[%emt 0:06:42]} 10. Qd3 {[%emt 0:09:09]} Qf6 {[%emt 0:10:06]} 11. c3 {[%emt 0:04:02]} dxc3 {[%emt 0:07:00]} 12. dxc3 {[%emt 0:00:39]} a6 {[%emt 0:11:42]} 13. Nd4 {[%emt 0:08:44]} Ne7 {[%emt 0:09:43]} 14. Ne2 {[%emt 0:08:41]} Nc6 {[%emt 0:06:06]} 15. f4 {[%emt 0:02:23]} Bc7 {[%emt 0:00:52]} 16. Be3 {[%emt 0:03:29]} d6 {[%emt 0:02:50]} 17. O-O {[%emt 0:03:22]} Qe7 {[%emt 0:02:52]} 18. a4 {[%emt 0:01:12]} Bd7 {[%emt 0:01:48]} 19. b4 {[%emt 0:02:16]} O-O {[%emt 0:02:30]} 20. b5 {[%emt 0:05:17]} axb5 {[%emt 0:05:59]} 21. axb5 {[%emt 0:01:06]} Na5 {[%emt 0:01:24]} 22. Ba2 {[%emt 0:05:51]} Qd8 {[%emt 0:03:27]} 23. Kh1 {[%emt 0:06:10]} Bb6 {[%emt 0:03:24]} 24. Bd2 {[%emt 0:00:14]} Bc5 {[%emt 0:00:32]} 25. Ng3 {[%emt 0:01:14]} d5 {[%emt 0:05:06]} 26. f5 {[%emt 0:01:02]} Qb6 {[%emt 0:01:09]} 27. Rab1 {[%emt 0:00:28]} dxe4 {[%emt 0:01:05]} 28. Nxe4 {[%emt 0:00:20]} exf5 {[%emt 0:01:01]} 29. Nxc5 {[%emt 0:03:52]} Qxc5 {[%emt 0:00:19]} 30. Bh6 {[%emt 0:00:22]} Rfe8 {[%emt 0:01:05]} 31. Qxd7 {[%emt 0:00:45]} Nc4 {[%emt 0:02:01]} 32. Bxc4 {[%emt 0:01:06]} Qxc4 {[%emt 0:00:03]} 33. Qd4 {[%emt 0:00:20]} Qxd4 {[%emt 0:00:32]} 34. cxd4 {[%emt 0:00:08]} Rad8 {[%emt 0:01:39]} 35. Rfe1 {[%emt 0:00:14]} Re6 {[%emt 0:00:23]} 36. Rbc1 {[%emt 0:00:27]} Rb6 {[%emt 0:01:30]} 37. Rc5 {[%emt 0:00:08]} Rbd6 {[%emt 0:01:46]} 38. d5 {[%emt 0:00:28]} b6 {[%emt 0:00:26]} 39. Rc7 {[%emt 0:01:25]} Rxd5 {[%emt 0:00:25]} 40. h3 {[%emt 0:00:12]} R5d7 {[%emt 0:02:25]} 41. Rxd7 {[%emt 0:00:07]} 1-0

[Event "African Individual Chess-ch Open 2024"]
[Site "Accra"]
[Date "2024.03.19"]
[Round "8.13"]
[White "Adewole, Adeyinka Samuel"]
[Black "Egbe, Kossi Thierry"]
[Result "1-0"]
[ECO "A03"]
[WhiteElo "1935"]
[BlackElo "1871"]
[Annotator "NA RC"]
[PlyCount "26"]
[EventDate "2024.03.13"]
[EventCountry "GHA"]
[SourceTitle "playchess.com"]
[Source "ChessBase"]
[SourceQuality "1"]
[TimeControl "5400+30"]

1. f4 {[%emt 0:04:10]} d5 {[%emt 0:03:50]} 2. Nf3 {[%emt 0:00:13]} c5 {[%emt 0:00:15]} 3. e3 {[%emt 0:00:28]} Bg4 {[%emt 0:00:46]} 4. Bb5+ {[%emt 0:03:33]} Nd7 {[%emt 0:04:13]} 5. h3 {[%emt 0:01:03]} Bxf3 {[%emt 0:00:28]} 6. Qxf3 {[%emt 0:00:13]} Ngf6 {[%emt 1:23:58]} 7. c4 {[%emt 0:00:23]} e6 {[%emt 0:00:00]} 8. O-O {[%emt 0:00:25]} a6 {[%emt 0:00:00]} 9. Ba4 {[%emt 0:00:33]} Qc7 {[%emt 0:00:00]} 10. d3 {[%emt 0:01:14]} O-O-O {[%emt 0:00:00]} 11. cxd5 {[%emt 0:01:30]} Nb6 {[%emt 0:00:00]} 12. Bc2 {[%emt 0:01:16]} Nbxd5 {[%emt 0:00:00]} 13. a3 {[%emt 0:01:15]} Be7 {[%emt 0:00:00]} 1-0

[Event "African Individual Chess-ch Open 2024"]
[Site "Accra"]
[Date "2024.03.20"]
[Round "9.1"]
[White "Kayonde, Andrew"]
[Black "Amin, Bassem"]
[Result "0-1"]
[ECO "E74"]
[WhiteElo "2321"]
[BlackElo "2670"]
[Annotator "TA"]
[PlyCount "64"]
[EventDate "2024.03.13"]
[EventCountry "GHA"]
[SourceTitle "playchess.com"]
[Source "ChessBase"]
[SourceQuality "1"]
[TimeControl "5400+30"]

{[%evp 17,64,8,6,18,21,-18,-28,-21,-24,-15,-17,-14,-22,-25,0,-16,-11,-12,-18,-14,-8,-14,-14,-114,-101,-225,-215,-219,-214,-204,-220,-206,-227,-286,-291,-275,-266,-465,-364,-466,-458,-456,-459,-820,-752,-843,-836,-1156,-1115]} 1. d4 {[%emt 1:31:00]} Nf6 {[%emt 0:02:44]} 2. c4 {[%emt 0:00:00]} g6 {[%emt 0:00:25]} 3. Nc3 {[%emt 0:00:00]} Bg7 {[%emt 0:00:05]} 4. e4 {[%emt 0:00:00]} d6 {[%emt 0:00:05]} 5. Be2 {[%emt 0:00:00]} O-O {[%emt 0:00:13]} 6. Bg5 {[%emt 0:00:00]} c5 {[%emt 0:00:16]} 7. dxc5 {[%emt 0:00:00]} Qa5 {[%emt 0:01:26]} 8. Bd2 {[%emt 0:00:00]} Qxc5 {[%emt 0:00:25]} 9. Nf3 {[%emt 0:00:00]} Bg4 {[%emt 0:01:21]} 10. Be3 {[%emt 0:00:00]} Qa5 {[%emt 0:26:14]} 11. Nd2 {[%emt 0:00:00]} Bxe2 {[%emt 0:00:43]} 12. Qxe2 {[%emt 0:00:00] Black has an edge.} Nfd7 {[%emt 0:03:36]} 13. Rc1 {[%emt 0:00:00]} Bxc3 {[%emt 0:08:59]} 14. Rxc3 {[%emt 0:00:00]} Qxa2 {[%emt 0:00:04]} 15. Nb3 {[%emt 0:00:00]} Nc5 {[%emt 0:00:19]} 16. Bxc5 {[%emt 0:00:00]} dxc5 {[%emt 0:00:19]} 17. O-O {[%emt 0:00:00][%cal Of1a1]} Nc6 {[%emt 0:00:37]} 18. Nxc5 {[%emt 0:00:00][%cal Oc5d7]} Nd4 {[%emt 0:01:56]} 19. Qe3 {[%emt 0:00:00]} Rfd8 {[%emt 0:00:28]} 20. Nb3 {[%emt 0:00:00] [#]} (20. Nd3 $1 $11) 20... e5 $1 $36 {[%emt 0:50:15][%mdl 2048] White is under strong pressure. Black is more active.} 21. f4 {[%emt 0:00:00] [#] White does not recover from this.} (21. Rd3 $17 {is a better defense.}) 21... exf4 $1 $19 {[%emt 0:00:00]} ({Don't take} 21... Qxb2 22. Rf2 Qb1+ 23. Rf1) 22. Rxf4 {[%emt 0:00:00]} Ne6 {[%emt 0:00:00]} 23. Rf1 {[%emt 0:00:00]} Qxb2 {[%emt 0:00:00]} 24. h4 {[%emt 0:00:00]} a5 {[%emt 0:00:00]} 25. Rf2 {[%emt 0:00:00]} Rd1+ {[%emt 0:00:00]} 26. Kh2 {[%emt 0:00:00]} Qb1 {[%emt 0:00:00]} 27. Nd2 $2 {[%emt 0:00:00]} (27. Rc1 Rxc1 28. Nxc1) 27... Rh1+ {[%emt 0:00:00]} 28. Kg3 {[%emt 0:00:00]} Qb4 {[%emt 0:00:00] Threatens to win with ...a4. Black is clearly winning.} 29. c5 {[%emt 0:00:47]} a4 {[%emt 0:00:00] Hoping for ...a3.} 30. Rc4 {[%emt 0:00:39]} (30. Nf3 $142 f5 31. Nd2 (31. exf5 $2 Ng7 $19)) 30... Qa5 {[%emt 0:00:00]} 31. e5 {[%emt 0:02:25]} Qc7 {[%emt 0:00:00] Strongly threatening ...a3.} 32. Rc3 {[%emt 0:02:24] [#]} a3 $1 {[%emt 0:00:00][%mdl 512] Weighted Error Value: White=0.90/Black=0.01 (flawless) .  Mistake:       	White=4     	---        Inaccurate:     	White=1     	---        OK:         	White=9     	Black=15     Best:        	White=1     	Black=1      Strong:       	---       	Black=2} 0-1

[Event "African Individual Chess-ch Open 2024"]
[Site "Accra"]
[Date "2024.03.20"]
[Round "9.2"]
[White "Bellahcene, Bilel"]
[Black "Ortega Amarelle, Mariano"]
[Result "1-0"]
[ECO "B12"]
[WhiteElo "2522"]
[BlackElo "2482"]
[Annotator "RC"]
[PlyCount "49"]
[EventDate "2024.03.13"]
[EventCountry "GHA"]
[SourceTitle "playchess.com"]
[Source "ChessBase"]
[SourceQuality "1"]
[TimeControl "5400+30"]

1. e4 {[%emt 0:07:51]} c6 {[%emt 0:00:39]} 2. d4 {[%emt 0:00:21]} d5 {[%emt 0:00:08]} 3. e5 {[%emt 0:00:18]} Bf5 {[%emt 0:00:34]} 4. g4 {[%emt 0:00:40]} Be4 {[%emt 0:02:16]} 5. f3 {[%emt 0:00:03]} Bg6 {[%emt 0:00:07]} 6. f4 {[%emt 0:00:19]} e6 {[%emt 0:01:43]} 7. h4 {[%emt 0:00:13]} Be4 {[%emt 0:13:10]} 8. Nf3 {[%emt 0:02:55]} h5 {[%emt 0:00:10]} 9. Nbd2 {[%emt 0:12:14]} Bxf3 {[%emt 0:12:23]} 10. Qxf3 {[%emt 0:00:48]} hxg4 {[%emt 0:00:07]} 11. Qxg4 {[%emt 0:00:01]} Nh6 {[%emt 0:00:09]} 12. Qg1 {[%emt 0:00:01]} c5 {[%emt 0:14:38]} 13. dxc5 {[%emt 0:11:19]} Qa5 {[%emt 0:00:52]} 14. b4 {[%emt 0:07:26]} Qxb4 {[%emt 0:03:06]} 15. Rb1 {[%emt 0:00:04]} Qxc5 {[%emt 0:28:12]} 16. Rxb7 {[%emt 0:08:04]} a6 {[%emt 0:09:34]} 17. c4 {[%emt 0:11:29]} Nd7 {[%emt 0:00:33]} 18. Qxc5 {[%emt 0:06:49]} Nxc5 {[%emt 0:00:11]} 19. Rb6 {[%emt 0:04:14]} Na4 {[%emt 0:07:26]} 20. Rc6 {[%emt 0:03:48]} dxc4 {[%emt 0:03:07]} 21. Bg2 {[%emt 0:01:21]} Ra7 {[%emt 0:00:59]} 22. Rh3 {[%emt 0:07:09]} Kd7 {[%emt 0:00:45]} 23. Rxc4 {[%emt 0:00:20]} Nc5 {[%emt 0:00:08]} 24. Ba3 {[%emt 0:00:42]} Rc7 {[%emt 0:00:57]} 25. Rhc3 {[%emt 0:00:13]} 1-0